Workbook

Sheet Семейный бюджет
B1: СЕМЕЙНЫЙ БЮДЖЕТ
B2: ГОД: | C2: 2013
B4: ДОСТУПНЫЕ ДЕНЕЖНЫЕ СРЕДСТВА | C4: ЯНВ | D4: ФЕВ | E4: МАР | F4: АПР | G4: МАЙ | H4: ИЮН | I4: ИЮЛ | J4: АВГ | K4: СЕН | L4: ОКТ | M4: НОЯ | N4: ДЕК | O4: ВСЕГО С НАЧАЛА ГОДА | P4: ТЕНДЕНЦИЯ
B5: Доходы за месяц | C5: =tblДоход[[#Totals],[ЯНВ]]-tblРасходы[[#Totals],[ЯНВ]] -> 1,220.00р. | D5: =tblДоход[[#Totals],[ФЕВ]]-tblРасходы[[#Totals],[ФЕВ]] -> 1,587.00р. | E5: =tblДоход[[#Totals],[МАР]]-tblРасходы[[#Totals],[МАР]] -> 1,174.00р. | F5: =tblДоход[[#Totals],[АПР]]-tblРасходы[[#Totals],[АПР]] -> 1,445.00р. | G5: =tblДоход[[#Totals],[МАЙ]]-tblРасходы[[#Totals],[МАЙ]] -> 1,391.00р. | H5: =tblДоход[[#Totals],[ИЮН]]-tblРасходы[[#Totals],[ИЮН]] -> 1,434.00р. | I5: =tblДоход[[#Totals],[ИЮЛ]]-tblРасходы[[#Totals],[ИЮЛ]] -> 1,085.00р. | J5: =tblДоход[[#Totals],[АВГ]]-tblРасходы[[#Totals],[АВГ]] -> 1,181.00р. | K5: =tblДоход[[#Totals],[СЕН]]-tblРасходы[[#Totals],[СЕН]] -> 1,445.00р. | L5: =tblДоход[[#Totals],[ОКТ]]-tblРасходы[[#Totals],[ОКТ]] -> 1,466.00р. | M5: =tblДоход[[#Totals],[НОЯ]]-tblРасходы[[#Totals],[НОЯ]] -> 0.00р. | N5: =tblДоход[[#Totals],[ДЕК]]-tblРасходы[[#Totals],[ДЕК]] -> 0.00р. | O5: =tblДоход[[#Totals],[ВСЕГО С НАЧАЛА ГОДА]]-tblРасходы[[#Totals],[ВСЕГО С НАЧАЛА ГОДА]] -> 13,428.00р.
B7: ТИП ДОХОДА | C7: ЯНВ | D7: ФЕВ | E7: МАР | F7: АПР | G7: МАЙ | H7: ИЮН | I7: ИЮЛ | J7: АВГ | K7: СЕН | L7: ОКТ | M7: НОЯ | N7: ДЕК | O7: ВСЕГО С НАЧАЛА ГОДА | P7: ТЕНДЕНЦИЯ
B8: Доход 1 | C8: 4,000.00р. | D8: 4,410.00р. | E8: 4,019.00р. | F8: 4,263.00р. | G8: 4,123.00р. | H8: 4,308.00р. | I8: 4,162.00р. | J8: 4,165.00р. | K8: 4,248.00р. | L8: 4,324.00р. | O8: =SUM(tblДоход[[#This Row],[ЯНВ]:[ДЕК]]) -> 42,022.00р.
B9: Доход 2 | C9: 275.00р. | D9: 296.00р. | E9: 251.00р. | F9: 269.00р. | G9: 252.00р. | H9: 252.00р. | I9: 262.00р. | J9: 258.00р. | K9: 296.00р. | L9: 270.00р. | O9: =SUM(tblДоход[[#This Row],[ЯНВ]:[ДЕК]]) -> 2,681.00р.
B10: Другой доход | C10: 500.00р. | D10: 507.00р. | E10: 551.00р. | F10: 556.00р. | G10: 588.00р. | H10: 534.00р. | I10: 533.00р. | J10: 585.00р. | K10: 560.00р. | L10: 520.00р. | O10: =SUM(tblДоход[[#This Row],[ЯНВ]:[ДЕК]]) -> 5,434.00р.
B11: ОБЩИЕ ДОХОДЫ | C11: =SUBTOTAL(109,tblДоход[ЯНВ]) -> 4,775.00р. | D11: =SUBTOTAL(109,tblДоход[ФЕВ]) -> 5,213.00р. | E11: =SUBTOTAL(109,tblДоход[МАР]) -> 4,821.00р. | F11: =SUBTOTAL(109,tblДоход[АПР]) -> 5,088.00р. | G11: =SUBTOTAL(109,tblДоход[МАЙ]) -> 4,963.00р. | H11: =SUBTOTAL(109,tblДоход[ИЮН]) -> 5,094.00р. | I11: =SUBTOTAL(109,tblДоход[ИЮЛ]) -> 4,957.00р. | J11: =SUBTOTAL(109,tblДоход[АВГ]) -> 5,008.00р. | K11: =SUBTOTAL(109,tblДоход[СЕН]) -> 5,104.00р. | L11: =SUBTOTAL(109,tblДоход[ОКТ]) -> 5,114.00р. | M11: =SUBTOTAL(109,tblДоход[НОЯ]) -> 0.00р. | N11: =SUBTOTAL(109,tblДоход[ДЕК]) -> 0.00р. | O11: =SUBTOTAL(109,tblДоход[ВСЕГО С НАЧАЛА ГОДА]) -> 50,137.00р.
B13: РАСХОДЫ | C13: ЯНВ | D13: ФЕВ | E13: МАР | F13: АПР | G13: МАЙ | H13: ИЮН | I13: ИЮЛ | J13: АВГ | K13: СЕН | L13: ОКТ | M13: НОЯ | N13: ДЕК | O13: ВСЕГО С НАЧАЛА ГОДА | P13: ТЕНДЕНЦИЯ
B14: Жилье | C14: 1,500.00р. | D14: 1,500.00р. | E14: 1,500.00р. | F14: 1,500.00р. | G14: 1,500.00р. | H14: 1,500.00р. | I14: 1,500.00р. | J14: 1,500.00р. | K14: 1,500.00р. | L14: 1,500.00р. | O14: =SUM(tblРасходы[[#This Row],[ЯНВ]:[ДЕК]]) -> 15,000.00р.
B15: Бакалейные товары | C15: 250.00р. | D15: 331.00р. | E15: 299.00р. | F15: 333.00р. | G15: 324.00р. | H15: 313.00р. | I15: 338.00р. | J15: 225.00р. | K15: 258.00р. | L15: 322.00р. | O15: =SUM(tblРасходы[[#This Row],[ЯНВ]:[ДЕК]]) -> 2,993.00р.
B16: Автомобиль | C16: 345.00р. | D16: 345.00р. | E16: 345.00р. | F16: 345.00р. | G16: 345.00р. | H16: 345.00р. | I16: 345.00р. | J16: 345.00р. | K16: 345.00р. | L16: 345.00р. | O16: =SUM(tblРасходы[[#This Row],[ЯНВ]:[ДЕК]]) -> 3,450.00р.
B17: Страхование | C17: 120.00р. | D17: 120.00р. | E17: 120.00р. | F17: 120.00р. | G17: 120.00р. | H17: 120.00р. | I17: 120.00р. | J17: 120.00р. | K17: 120.00р. | L17: 120.00р. | O17: =SUM(tblРасходы[[#This Row],[ЯНВ]:[ДЕК]]) -> 1,200.00р.
B18: Домашний телефон | C18: 50.00р. | D18: 50.00р. | E18: 50.00р. | F18: 50.00р. | G18: 50.00р. | H18: 50.00р. | I18: 50.00р. | J18: 50.00р. | K18: 50.00р. | L18: 50.00р. | O18: =SUM(tblРасходы[[#This Row],[ЯНВ]:[ДЕК]]) -> 500.00р.
B19: Мобильный телефон | C19: 72.00р. | D19: 70.00р. | E19: 80.00р. | F19: 70.00р. | G19: 75.00р. | H19: 80.00р. | I19: 90.00р. | J19: 73.00р. | K19: 75.00р. | L19: 70.00р. | O19: =SUM(tblРасходы[[#This Row],[ЯНВ]:[ДЕК]]) -> 755.00р.
B20: Кабельное телевидение | C20: 60.00р. | D20: 63.00р. | E20: 65.00р. | F20: 60.00р. | G20: 65.00р. | H20: 60.00р. | I20: 63.00р. | J20: 60.00р. | K20: 63.00р. | L20: 60.00р. | O20: =SUM(tblРасходы[[#This Row],[ЯНВ]:[ДЕК]]) -> 619.00р.
B21: Интернет | C21: 45.00р. | D21: 45.00р. | E21: 45.00р. | F21: 45.00р. | G21: 45.00р. | H21: 45.00р. | I21: 45.00р. | J21: 45.00р. | K21: 45.00р. | L21: 45.00р. | O21: =SUM(tblРасходы[[#This Row],[ЯНВ]:[ДЕК]]) -> 450.00р.
B22: Электричество | C22: 155.00р. | D22: 155.00р. | E22: 158.00р. | F22: 160.00р. | G22: 165.00р. | H22: 200.00р. | I22: 340.00р. | J22: 350.00р. | K22: 240.00р. | L22: 180.00р. | O22: =SUM(tblРасходы[[#This Row],[ЯНВ]:[ДЕК]]) -> 2,103.00р.
B23: Вода | C23: 35.00р. | D23: 35.00р. | E23: 37.00р. | F23: 39.00р. | G23: 45.00р. | H23: 42.00р. | I23: 42.00р. | J23: 36.00р. | K23: 38.00р. | L23: 40.00р. | O23: =SUM(tblРасходы[[#This Row],[ЯНВ]:[ДЕК]]) -> 389.00р.
B24: Газ | C24: 50.00р. | D24: 45.00р. | E24: 40.00р. | F24: 40.00р. | G24: 42.00р. | H24: 50.00р. | I24: 55.00р. | J24: 40.00р. | K24: 43.00р. | L24: 30.00р. | O24: =SUM(tblРасходы[[#This Row],[ЯНВ]:[ДЕК]]) -> 435.00р.
B25: Развлечения | C25: 123.00р. | D25: 92.00р. | E25: 58.00р. | F25: 131.00р. | G25: 46.00р. | H25: 105.00р. | I25: 84.00р. | J25: 108.00р. | K25: 132.00р. | L25: 136.00р. | O25: =SUM(tblРасходы[[#This Row],[ЯНВ]:[ДЕК]]) -> 1,015.00р.
B26: Обучение | C26: 550.00р. | D26: 550.00р. | E26: 550.00р. | F26: 550.00р. | G26: 550.00р. | H26: 550.00р. | I26: 550.00р. | J26: 550.00р. | K26: 550.00р. | L26: 550.00р. | O26: =SUM(tblРасходы[[#This Row],[ЯНВ]:[ДЕК]]) -> 5,500.00р.
B27: Сбережения | C27: 200.00р. | D27: 225.00р. | E27: 300.00р. | F27: 200.00р. | G27: 200.00р. | H27: 200.00р. | I27: 250.00р. | J27: 325.00р. | K27: 200.00р. | L27: 200.00р. | O27: =SUM(tblРасходы[[#This Row],[ЯНВ]:[ДЕК]]) -> 2,300.00р.
B28: ОБЩИЕ РАСХОДЫ | C28: =SUBTOTAL(109,tblРасходы[ЯНВ]) -> 3,555.00р. | D28: =SUBTOTAL(109,tblРасходы[ФЕВ]) -> 3,626.00р. | E28: =SUBTOTAL(109,tblРасходы[МАР]) -> 3,647.00р. | F28: =SUBTOTAL(109,tblРасходы[АПР]) -> 3,643.00р. | G28: =SUBTOTAL(109,tblРасходы[МАЙ]) -> 3,572.00р. | H28: =SUBTOTAL(109,tblРасходы[ИЮН]) -> 3,660.00р. | I28: =SUBTOTAL(109,tblРасходы[ИЮЛ]) -> 3,872.00р. | J28: =SUBTOTAL(109,tblРасходы[АВГ]) -> 3,827.00р. | K28: =SUBTOTAL(109,tblРасходы[СЕН]) -> 3,659.00р. | L28: =SUBTOTAL(109,tblРасходы[ОКТ]) -> 3,648.00р. | M28: =SUBTOTAL(109,tblРасходы[НОЯ]) -> 0.00р. | N28: =SUBTOTAL(109,tblРасходы[ДЕК]) -> 0.00р. | O28: =SUBTOTAL(109,tblРасходы[ВСЕГО С НАЧАЛА ГОДА]) -> 36,709.00р.
